[Event "FAI-ch Candidates 2022"]
[Site "Eidi"]
[Date "2022.04.14"]
[Round "6.4"]
[White "Skaale, Janus"]
[Black "Hansen Eliasen, Bogi"]
[Result "1-0"]
[ECO "B32"]
[WhiteElo "1883"]
[BlackElo "1841"]
[Annotator "NA RC"]
[PlyCount "71"]
[EventDate "2022.04.10"]
[EventType "tourn"]
[EventCountry "FAI"]
[SourceTitle "playchess.com"]
[Source "ChessBase"]
[SourceQuality "1"]
[TimeControl "40/5400+30:1800+30"]

1. e4 {[%emt 0:00:08]} c5 {[%emt 0:00:16]} 2. Nf3 {[%emt 0:00:20]} Nc6 {[%emt 0:00:13]} 3. d4 {[%emt 0:00:22]} cxd4 {[%emt 0:00:11]} 4. Nxd4 {[%emt 0:00:03]} e5 {[%emt 0:00:17]} 5. Nb5 {[%emt 0:01:21]} d6 {[%emt 0:00:14]} 6. N1c3 {[%emt 0:00:33]} a6 {[%emt 0:00:53]} 7. Na3 $11 {[%emt 0:00:22]} Be6 {[%emt 0:01:29]} 8. Nc4 {[%emt 0:01:57]} Be7 {[%emt 0:19:34]} 9. Ne3 {[%emt 0:10:34]} Nf6 {[%emt 0:00:59]} 10. Ned5 {[%emt 0:03:01]} Bxd5 {[%emt 0:07:02]} 11. exd5 {[%emt 0:05:41]} Nb8 {[%emt 0:05:33]} 12. Be2 {[%emt 0:02:50]} O-O {[%emt 0:02:51]} 13. O-O {[%emt 0:00:15]} Nfd7 {[%emt 0:03:15]} 14. Na4 {[%emt 0:05:18]} f5 {[%emt 0:17:05]} 15. c4 {[%emt 0:02:46]} Nf6 {[%emt 0:03:15]} 16. b4 {[%emt 0:08:08]} b6 {[%emt 0:03:50]} 17. Nc3 {[%emt 0:03:32]} Nbd7 {[%emt 0:00:46]} 18. Bb2 {[%emt 0:02:49]} Qe8 {[%emt 0:07:55]} 19. a4 {[%emt 0:02:19]} a5 {[%emt 0:01:47]} 20. Nb5 {[%emt 0:02:03]} Qc8 {[%emt 0:01:37]} 21. Ba3 {[%emt 0:04:53]} axb4 {[%emt 0:00:18]} 22. Bxb4 {[%emt 0:00:06]} Nc5 {[%emt 0:00:15]} 23. a5 {[%emt 0:03:26]} Nfd7 {[%emt 0:01:51]} 24. Qc2 {[%emt 0:08:03]} bxa5 {[%emt 0:02:13]} 25. Bxa5 {[%emt 0:01:44]} Na6 {[%emt 0:00:17]} 26. Rfb1 {[%emt 0:04:22]} Ndc5 {[%emt 0:00:24]} 27. Bb6 {[%emt 0:03:54]} Qd7 {[%emt 0:00:25]} 28. Ra2 {[%emt 0:06:29]} e4 {[%emt 0:06:10]} 29. Bxc5 {[%emt 0:01:51]} dxc5 {[%emt 0:02:55]} 30. Qd2 {[%emt 0:05:54]} Nc7 {[%emt 0:03:37]} 31. Rxa8 {[%emt 0:03:12]} Rxa8 {[%emt 0:00:13]} 32. d6 {[%emt 0:00:37]} Nxb5 {[%emt 0:00:33]} 33. Qd5+ {[%emt 0:00:12]} Kf8 {[%emt 0:00:53]} 34. Qxa8+ {[%emt 0:00:10]} Kf7 {[%emt 0:00:58]} 35. dxe7 {[%emt 0:00:47]} Nc3 {[%emt 0:05:07]} 36. Qf8+ {[%emt 0:00:29]} 1-0

[Event "FAI-ch Candidates 2022"]
[Site "Eidi"]
[Date "2022.04.15"]
[Round "7.1"]
[White "Hansen Eliasen, Bogi"]
[Black "Gregersen, Hedin"]
[Result "0-1"]
[ECO "E70"]
[WhiteElo "1841"]
[BlackElo "1859"]
[Annotator "NA RC"]
[PlyCount "62"]
[EventDate "2022.04.10"]
[EventType "tourn"]
[EventCountry "FAI"]
[SourceTitle "playchess.com"]
[Source "ChessBase"]
[SourceQuality "1"]
[TimeControl "40/5400+30:1800+30"]

1. d4 {[%emt 0:00:04]} Nf6 {[%emt 0:00:05]} 2. c4 {[%emt 0:00:08]} g6 {[%emt 0:00:06]} 3. Nc3 {[%emt 0:00:05]} Bg7 {[%emt 0:00:07]} 4. e4 {[%emt 0:00:07]} d6 {[%emt 0:00:06]} 5. Bd3 {[%emt 0:00:06]} O-O {[%emt 0:00:08]} 6. Nge2 {[%emt 0:00:06]} Nc6 {[%emt 0:00:07]} 7. O-O {[%emt 0:00:19]} Nd7 {[%emt 0:00:06]} 8. Be3 {[%emt 0:00:54]} e5 {[%emt 0:00:09]} 9. d5 {[%emt 0:00:21]} Nd4 {[%emt 0:00:13]} 10. f4 {[%emt 0:10:52]} (10. Bb1 $14) 10... Nxe2+ {[%emt 0:03:29]} 11. Bxe2 {[%emt 0:03:29]} exf4 {[%emt 0:01:28]} 12. Bxf4 {[%emt 0:00:16]} g5 {[%emt 0:21:52]} (12... Nc5 $142) 13. Be3 {[%emt 0:05:36]} Ne5 {[%emt 0:01:04]} (13... Bxc3 $11 14. bxc3 Qe7) 14. c5 {[%emt 0:04:58]} f5 $14 {[%emt 0:02:03]} 15. cxd6 {[%emt 0:03:45]} cxd6 {[%emt 0:01:49]} 16. exf5 {[%emt 0:18:49]} Bxf5 {[%emt 0:02:04]} 17. Nb5 {[%emt 0:06:57]} Qe7 {[%emt 0:08:32]} 18. Qc1 {[%emt 0:10:18]} h6 {[%emt 0:11:07]} 19. Qc7 {[%emt 0:01:16]} Nd7 {[%emt 0:01:52]} 20. Rf3 {[%emt 0:06:30]} g4 {[%emt 0:00:54]} 21. Rg3 {[%emt 0:02:02]} Be5 {[%emt 0:02:05]} 22. Rxg4+ {[%emt 0:02:08]} Bxg4 {[%emt 0:00:13]} 23. Bxg4 {[%emt 0:00:09]} Rad8 {[%emt 0:04:52]} 24. Bxh6 {[%emt 0:02:35]} Qh4 {[%emt 0:03:24]} 25. Bxf8 {[%emt 0:08:50]} Rxf8 {[%emt 0:00:04]} 26. Bf3 {[%emt 0:02:29]} Bxh2+ {[%emt 0:05:47]} 27. Kf1 {[%emt 0:00:19]} Ne5 {[%emt 0:00:31]} 28. Ke2 {[%emt 0:02:20]} Qb4 {[%emt 0:02:47]} 29. Rh1 {[%emt 0:02:38]} Qxb5+ {[%emt 0:00:19]} 30. Kd1 {[%emt 0:01:42]} Qd3+ {[%emt 0:00:16]} 31. Kc1 {[%emt 0:00:40]} Bf4# {[%emt 0:22:46]} 0-1

[Event "FAI-ch Candidates 2022"]
[Site "Eidi"]
[Date "2022.04.15"]
[Round "7.2"]
[White "Nielsen, Jon I Horni"]
[Black "Skaale, Janus"]
[Result "1-0"]
[ECO "B76"]
[WhiteElo "1923"]
[BlackElo "1883"]
[Annotator "RC"]
[PlyCount "77"]
[EventDate "2022.04.10"]
[EventType "tourn"]
[EventCountry "FAI"]
[SourceTitle "playchess.com"]
[Source "ChessBase"]
[SourceQuality "1"]
[TimeControl "40/5400+30:1800+30"]

1. e4 {[%emt 0:00:03]} c5 {[%emt 0:00:06]} 2. Nf3 {[%emt 0:00:05]} d6 {[%emt 0:00:06]} 3. d4 {[%emt 0:00:55]} cxd4 {[%emt 0:00:10]} 4. Nxd4 {[%emt 0:00:06]} Nf6 {[%emt 0:00:17]} 5. Nc3 {[%emt 0:00:10]} g6 {[%emt 0:00:24]} 6. Be3 {[%emt 0:01:16]} Bg7 {[%emt 0:00:06]} 7. f3 {[%emt 0:01:26]} O-O {[%emt 0:00:25]} 8. Qd2 {[%emt 0:00:40]} Nc6 {[%emt 0:00:19]} 9. O-O-O {[%emt 0:00:32]} d5 {[%emt 0:00:32]} 10. Nxc6 {[%emt 0:01:22]} bxc6 {[%emt 0:00:18]} 11. exd5 {[%emt 0:00:28]} cxd5 {[%emt 0:03:16]} 12. Bd4 {[%emt 0:05:29]} Qa5 {[%emt 0:13:50]} 13. g4 {[%emt 0:02:44]} Rd8 {[%emt 0:11:56]} 14. h4 {[%emt 0:03:34]} Bb7 {[%emt 0:09:24]} 15. Be2 {[%emt 0:06:26]} e5 {[%emt 0:13:28]} 16. Bxe5 {[%emt 0:11:13]} d4 {[%emt 0:00:15]} 17. Bxf6 {[%emt 0:06:45]} dxc3 {[%emt 0:06:39]} 18. Qxc3 {[%emt 0:00:16]} Qxa2 {[%emt 0:03:41]} 19. b3 {[%emt 0:01:27]} Rdc8 {[%emt 0:09:39]} 20. Qb2 {[%emt 0:00:09]} Qxb2+ {[%emt 0:00:44]} 21. Bxb2 {[%emt 0:00:03]} Re8 {[%emt 0:01:09]} 22. Rde1 {[%emt 0:03:06]} Rxe2 {[%emt 0:02:10]} 23. Rxe2 {[%emt 0:01:54]} Bxf3 {[%emt 0:00:02]} 24. Rhe1 {[%emt 0:00:18]} Bxe2 {[%emt 0:00:14]} 25. Rxe2 {[%emt 0:00:03]} Rd8 {[%emt 0:01:49]} 26. c4 {[%emt 0:03:12]} Bxb2+ {[%emt 0:07:03]} 27. Kxb2 {[%emt 0:00:12]} Rd4 {[%emt 0:00:21]} 28. c5 {[%emt 0:00:21]} Kf8 {[%emt 0:05:04]} 29. Kc3 {[%emt 0:00:13]} Rd7 {[%emt 0:04:53]} 30. Kc4 {[%emt 0:00:40]} f5 {[%emt 0:03:16]} 31. gxf5 {[%emt 0:01:23]} gxf5 {[%emt 0:00:01]} 32. c6 {[%emt 0:03:54]} Re7 {[%emt 0:04:15]} 33. Rf2 {[%emt 0:00:17]} Rf7 {[%emt 0:00:33]} 34. Rxf5 {[%emt 0:00:29]} Rxf5 {[%emt 0:00:21]} 35. c7 {[%emt 0:00:12]} Rf4+ {[%emt 0:00:22]} 36. Kd3 {[%emt 0:00:39]} Rf3+ {[%emt 0:00:44]} 37. Kd4 {[%emt 0:00:07]} Rf4+ {[%emt 0:00:34]} 38. Ke5 {[%emt 0:00:48]} Rc4 {[%emt 0:00:33]} 39. bxc4 {[%emt 0:00:09]} 1-0

[Event "FAI-ch Candidates 2022"]
[Site "Eidi"]
[Date "2022.04.15"]
[Round "7.3"]
[White "Berg, Margar M."]
[Black "Danielsen, Andrias"]
[Result "0-1"]
[ECO "A16"]
[WhiteElo "2005"]
[BlackElo "1893"]
[Annotator "NA RC"]
[PlyCount "80"]
[EventDate "2022.04.10"]
[EventType "tourn"]
[EventCountry "FAI"]
[SourceTitle "playchess.com"]
[Source "ChessBase"]
[SourceQuality "1"]
[TimeControl "40/5400+30:1800+30"]

1. g3 {[%emt 0:00:43]} Nf6 {[%emt 0:01:01]} 2. Bg2 {[%emt 0:00:10]} d5 {[%emt 0:03:23]} 3. Nf3 {[%emt 0:01:35]} g6 {[%emt 0:04:49]} 4. O-O {[%emt 0:00:27]} Bg7 {[%emt 0:00:09]} 5. c4 {[%emt 0:00:50]} c6 {[%emt 0:00:44]} 6. cxd5 {[%emt 0:01:28]} cxd5 {[%emt 0:00:56]} 7. d3 {[%emt 0:00:53]} (7. d4 $142) 7... O-O {[%emt 0:00:21]} 8. Nc3 {[%emt 0:01:01]} Nc6 {[%emt 0:01:21]} 9. Bg5 {[%emt 0:01:35]} h6 {[%emt 0:23:05]} 10. Bf4 {[%emt 0:05:20]} (10. Bxf6 $5 Bxf6 11. Rc1 $11) 10... g5 {[%emt 0:01:24]} 11. Bd2 {[%emt 0:00:36]} e5 {[%emt 0:00:42]} 12. e4 $11 {[%emt 0:07:12]} d4 {[%emt 0:05:14]} 13. Nd5 {[%emt 0:01:40]} Nxd5 {[%emt 0:04:11]} 14. exd5 {[%emt 0:02:25]} Qxd5 {[%emt 0:01:07]} 15. Nxg5 {[%emt 0:01:22]} Qb5 {[%emt 0:12:19]} 16. Ne4 {[%emt 0:01:11]} Qxd3 {[%emt 0:03:42]} 17. f4 {[%emt 0:12:38]} f5 {[%emt 0:10:25]} 18. Nf2 {[%emt 0:02:07]} Qb5 {[%emt 0:00:35]} 19. fxe5 {[%emt 0:00:39]} Nxe5 {[%emt 0:01:28]} 20. Qh5 {[%emt 0:01:31]} Qb6 {[%emt 0:00:39]} 21. Rae1 {[%emt 0:04:33]} Bd7 {[%emt 0:04:58]} 22. Rxe5 {[%emt 0:14:51]} Bxe5 {[%emt 0:00:45]} 23. Bxh6 {[%emt 0:05:49]} Bg7 {[%emt 0:01:50]} 24. Bd5+ {[%emt 0:05:15]} Kh7 {[%emt 0:01:32]} 25. Bf4+ {[%emt 0:17:39]} Bh6 {[%emt 0:00:15]} 26. Nh3 {[%emt 0:00:27]} Rae8 {[%emt 0:04:04]} 27. Ng5+ {[%emt 0:08:55]} Kg7 {[%emt 0:00:22]} 28. Nf7 {[%emt 0:00:21]} Bxf4 {[%emt 0:01:25]} 29. Rxf4 {[%emt 0:00:33]} Qg6 {[%emt 0:01:32]} 30. Qxg6+ {[%emt 0:00:52]} Kxg6 {[%emt 0:00:13]} 31. Nd6 {[%emt 0:00:09]} Re2 {[%emt 0:01:08]} 32. Rxd4 {[%emt 0:01:10]} Rxb2 {[%emt 0:00:32]} 33. Nc4 {[%emt 0:00:18]} Rb1+ {[%emt 0:00:59]} 34. Kg2 {[%emt 0:00:34]} Bc8 {[%emt 0:05:07]} 35. Ne5+ {[%emt 0:00:38]} Kf6 {[%emt 0:00:26]} 36. Nf3 {[%emt 0:00:31]} Rb2+ {[%emt 0:00:29]} 37. Kg1 {[%emt 0:00:29]} Re8 {[%emt 0:00:58]} 38. h4 {[%emt 0:00:32]} Ree2 {[%emt 0:00:32]} 39. Kf1 {[%emt 0:00:29]} Be6 {[%emt 0:01:19]} 40. Ng1 {[%emt 0:00:00]} Rec2 {[%emt 0:00:00]} 0-1

[Event "FAI-ch Candidates 2022"]
[Site "Eidi"]
[Date "2022.04.15"]
[Round "7.4"]
[White "Jacobsen, Heidrikur T."]
[Black "Hansen, Herluf"]
[Result "0-1"]
[ECO "E27"]
[WhiteElo "1853"]
[BlackElo "1982"]
[Annotator "NA RC"]
[PlyCount "74"]
[EventDate "2022.04.10"]
[EventType "tourn"]
[EventCountry "FAI"]
[SourceTitle "playchess.com"]
[Source "ChessBase"]
[SourceQuality "1"]
[TimeControl "40/5400+30:1800+30"]

1. d4 {[%emt 0:00:11]} Nf6 {[%emt 0:01:14]} 2. c4 {[%emt 0:02:14]} e6 {[%emt 0:00:30]} 3. Nc3 {[%emt 0:00:06]} Bb4 {[%emt 0:03:06]} 4. a3 {[%emt 0:02:53]} Bxc3+ {[%emt 0:00:41]} 5. bxc3 {[%emt 0:00:05]} O-O {[%emt 0:00:33]} 6. Bg5 {[%emt 0:01:44]} d6 {[%emt 0:07:36]} 7. Nf3 {[%emt 0:04:53]} Nbd7 {[%emt 0:00:17]} 8. e4 {[%emt 0:05:07]} e5 {[%emt 0:00:29]} 9. Bd3 {[%emt 0:01:02]} Re8 {[%emt 0:03:41]} 10. O-O {[%emt 0:04:26]} h6 {[%emt 0:00:27]} 11. Bxf6 {[%emt 0:01:47]} Qxf6 {[%emt 0:00:28]} 12. Ra2 {[%emt 0:02:33]} Nf8 {[%emt 0:00:36]} 13. d5 {[%emt 0:10:12]} Ng6 {[%emt 0:02:34]} 14. Ne1 {[%emt 0:02:03]} Nf4 $15 {[%emt 0:08:30]} 15. f3 {[%emt 0:03:12]} Qg6 {[%emt 0:03:14]} 16. Kh1 {[%emt 0:02:38]} f5 {[%emt 0:02:44]} 17. g3 {[%emt 0:04:34]} Nh3 {[%emt 0:00:53]} 18. exf5 {[%emt 0:03:51]} Bxf5 {[%emt 0:00:28]} 19. Bxf5 {[%emt 0:03:12]} Qxf5 {[%emt 0:00:26]} 20. Ng2 {[%emt 0:04:29]} Rf8 {[%emt 0:14:41]} 21. Ne3 {[%emt 0:07:13]} Qh5 {[%emt 0:02:51]} 22. Rg2 {[%emt 0:04:07]} Rae8 {[%emt 0:01:00]} 23. Qe2 {[%emt 0:02:48]} Kh8 {[%emt 0:02:12]} 24. Ng4 {[%emt 0:01:45]} b6 {[%emt 0:12:06]} 25. Qe4 {[%emt 0:06:22]} Rf7 {[%emt 0:06:59]} 26. Ne3 {[%emt 0:02:37]} Ng5 {[%emt 0:00:36]} 27. g4 {[%emt 0:02:57]} Nxe4 {[%emt 0:05:27]} 28. gxh5 {[%emt 0:00:24]} Nf6 {[%emt 0:01:24]} 29. Rfg1 {[%emt 0:03:47]} Nxh5 {[%emt 0:00:17]} 30. Rg6 {[%emt 0:02:40]} Nf4 {[%emt 0:05:08]} 31. R6g4 {[%emt 0:01:15]} Ne2 {[%emt 0:03:58]} 32. R1g2 {[%emt 0:00:50]} Nxc3 {[%emt 0:00:20]} 33. Rg6 {[%emt 0:00:33]} Ref8 {[%emt 0:01:25]} 34. Re6 {[%emt 0:01:33]} Rxf3 {[%emt 0:00:21]} 35. Re7 {[%emt 0:00:42]} Rxe3 {[%emt 0:01:33]} 36. Rgxg7 {[%emt 0:00:17]} Re1+ {[%emt 0:00:18]} 37. Kg2 {[%emt 0:00:11]} Rg8 {[%emt 0:00:17]} 0-1